[Event "Anderssen Festival 2019"]
[Site "Wroclaw"]
[Date "2019.08.05"]
[Round "1.19"]
[White "Urbaniak, Marcin"]
[Black "Malecki, Rafal"]
[Result "0-1"]
[ECO "B00"]
[WhiteElo "1374"]
[BlackElo "2063"]
[Annotator "NA"]
[PlyCount "108"]
[EventDate "2019.08.05"]
[EventType "swiss"]
[EventCountry "POL"]
[SourceTitle "playchess.com"]
[Source "ChessBase"]
[SourceQuality "1"]
[TimeControl "40/5400+30:900+30"]

1. e4 {[%emt 0:00:00]} d6 {[%emt 0:00:00]} 2. d4 {[%emt 0:00:00]} g6 {[%emt 0:00:00]} 3. Nf3 {[%emt 0:00:36]} Bg7 {[%emt 0:00:00]} 4. Bc4 {[%emt 0:03:49]} Nf6 {[%emt 0:03:06]} 5. Nc3 {[%emt 0:00:25]} c6 {[%emt 0:06:35]} 6. a4 {[%emt 0:24:23]} O-O {[%emt 0:05:15]} 7. O-O {[%emt 0:01:16]} d5 {[%emt 0:03:23]} 8. exd5 {[%emt 0:03:46]} cxd5 {[%emt 0:00:29]} 9. Ba2 {[%emt 0:09:10]} Bg4 {[%emt 0:02:38]} 10. h3 {[%emt 0:02:46]} Bxf3 {[%emt 0:00:39]} 11. Qxf3 {[%emt 0:00:13]} e6 {[%emt 0:01:41]} 12. Bf4 {[%emt 0:06:44]} Nc6 {[%emt 0:01:40]} 13. Rfd1 {[%emt 0:04:35]} Qb6 {[%emt 0:10:39]} 14. Nb5 {[%emt 0:01:32]} Rfc8 {[%emt 0:27:26]} 15. c4 {[%emt 0:00:26]} dxc4 {[%emt 0:02:12]} 16. Nd6 {[%emt 0:00:54]} Rd8 {[%emt 0:13:57]} 17. Nxc4 {[%emt 0:21:45]} Nxd4 {[%emt 0:03:26]} 18. Qe3 {[%emt 0:06:14]} Qc5 {[%emt 0:13:36]} 19. Be5 {[%emt 0:00:14]} Ne8 {[%emt 0:01:14]} 20. b4 {[%emt 0:03:26]} Qxb4 21. Bxd4 {[%emt 0:03:37]} Qxa4 {[%emt 0:01:08]} 22. Bb3 {[%emt 0:00:40]} Bxd4 {[%emt 0:00:34]} 23. Bxa4 {[%emt 0:01:43]} Bxe3 {[%emt 0:00:09]} 24. Nxe3 {[%emt 0:00:40]} Nd6 {[%emt 0:00:47]} 25. Rab1 {[%emt 0:01:31]} Rab8 {[%emt 0:00:22]} 26. Rd2 {[%emt 0:00:36]} Kf8 {[%emt 0:00:54]} 27. Rc1 {[%emt 0:01:13]} b5 {[%emt 0:00:37]} 28. Bd1 {[%emt 0:00:10]} Rb6 {[%emt 0:00:53]} 29. Rc7 {[%emt 0:00:49]} a5 {[%emt 0:00:24]} 30. Ra7 {[%emt 0:00:24]} a4 {[%emt 0:00:15]} 31. Rb2 {[%emt 0:00:14]} Rdb8 {[%emt 0:00:54]} 32. Rb4 {[%emt 0:01:31]} Nc8 {[%emt 0:00:20]} 33. Ra5 {[%emt 0:00:10]} Ne7 {[%emt 0:00:43]} 34. Bf3 {[%emt 0:00:37]} f5 {[%emt 0:00:25]} 35. Nc2 {[%emt 0:00:27]} e5 {[%emt 0:00:15]} 36. Rb1 {[%emt 0:00:12]} Nc6 {[%emt 0:00:52]} 37. Bxc6 {[%emt 0:00:18]} Rxc6 {[%emt 0:00:04]} 38. Nb4 {[%emt 0:00:57]} Rc4 {[%emt 0:00:56]} 39. Nd3 {[%emt 0:00:21]} e4 {[%emt 0:00:21]} 40. Ne5 {[%emt 0:00:00]} Rc7 {[%emt 0:00:00]} 41. Rxa4 {[%emt 0:01:47]} bxa4 {[%emt 0:07:37]} 42. Rxb8+ {[%emt 0:02:46]} Ke7 {[%emt 0:00:03]} 43. Rb6 {[%emt 0:03:36]} Rc1+ {[%emt 0:02:05]} 44. Kh2 {[%emt 0:00:08]} a3 {[%emt 0:01:51]} 45. Ra6 {[%emt 0:00:55]} Rc2 {[%emt 0:03:49]} 46. Rxa3 {[%emt 0:06:39]} Rxf2 {[%emt 0:00:29]} 47. Re3 {[%emt 0:01:21]} Kd6 {[%emt 0:02:34]} 48. Nc4+ {[%emt 0:01:40]} Kd5 {[%emt 0:00:21]} 49. Kg3 {[%emt 0:00:15]} Rf1 {[%emt 0:00:55]} 50. Nd2 {[%emt 0:00:18]} f4+ {[%emt 0:00:56]} 51. Kh2 {[%emt 0:00:41]} fxe3 {[%emt 0:00:28]} 52. Nxf1 {[%emt 0:00:08]} e2 {[%emt 0:00:07]} 53. Ne3+ {[%emt 0:00:11]} Kd4 {[%emt 0:00:13]} 54. Nc2+ {[%emt 0:00:11]} Kc3 {[%emt 0:00:45]} 0-1

[Event "Anderssen Festival 2019"]
[Site "Wroclaw"]
[Date "2019.08.05"]
[Round "1.20"]
[White "Verwoert, Jef"]
[Black "Zarzycki, Lukasz"]
[Result "1-0"]
[ECO "A05"]
[WhiteElo "2034"]
[BlackElo "1397"]
[Annotator "NA"]
[PlyCount "95"]
[EventDate "2019.08.05"]
[EventType "swiss"]
[EventCountry "POL"]
[SourceTitle "playchess.com"]
[Source "ChessBase"]
[SourceQuality "1"]
[TimeControl "40/5400+30:900+30"]

1. Nf3 Nf6 2. g3 c5 3. Bg2 g6 4. O-O Bg7 5. c4 O-O 6. Nc3 d5 7. cxd5 Nxd5 8. Nxd5 Qxd5 9. d3 Qd7 10. Qc2 Qc7 11. d4 Na6 12. Bf4 Qb6 13. dxc5 Qxc5 14. Qb3 e5 15. Rac1 Qe7 16. Bg5 Qe6 17. Nd2 Qxb3 18. Nxb3 f6 19. Be3 Rd8 20. Rfd1 Bg4 21. Bd5+ Rxd5 22. Rxd5 Bxe2 23. Rd7 b6 24. a3 Bg4 25. Rd2 Be6 26. Rc3 Bf8 27. f4 e4 28. Nd4 Bd7 29. Nc6 Be8 30. b4 f5 31. Bd4 Nc7 32. Ne7+ Bxe7 33. Rxc7 Kf7 34. Kf2 h5 35. h3 Ke6 36. Be5 a5 37. Rb7 axb4 38. Rxb6+ Kf7 39. axb4 Ra4 40. Bd6 Ra3 41. Rc2 Bxd6 42. Rxd6 Rf3+ 43. Kg2 h4 44. Rc7+ Kf8 45. gxh4 Rxf4 46. Rf6+ Kg8 47. Re6 Kf8 48. Rc8 1-0

[Event "Anderssen Festival 2019"]
[Site "Wroclaw"]
[Date "2019.08.06"]
[Round "2.1"]
[White "Gutenev, Alexander"]
[Black "Piekielny, Pawel"]
[Result "1-0"]
[ECO "C11"]
[WhiteElo "2470"]
[BlackElo "1985"]
[Annotator "ChessBase"]
[PlyCount "75"]
[EventDate "2019.08.05"]
[EventType "swiss"]
[EventCountry "POL"]
[SourceTitle "playchess.com"]
[Source "ChessBase"]
[SourceQuality "1"]
[TimeControl "40/5400+30:900+30"]

1. e4 {[%emt 0:05:11]} e6 {[%emt 0:00:00]} 2. d4 {[%emt 0:00:05]} d5 {[%emt 0:00:00]} 3. Nc3 {[%emt 0:00:07]} Nf6 {[%emt 0:00:00]} 4. e5 {[%emt 0:00:07]} Nfd7 {[%emt 0:00:00]} 5. f4 {[%emt 0:00:07]} c5 {[%emt 0:00:00]} 6. Nf3 {[%emt 0:00:07]} Qb6 {[%emt 0:00:13]} 7. Na4 {[%emt 0:00:56]} Qc6 {[%emt 0:01:29]} 8. Nc3 {[%emt 0:01:56]} Qb6 {[%emt 0:00:05]} 9. Be3 {[%emt 0:01:40]} a6 {[%emt 0:00:05]} 10. Na4 {[%emt 0:02:26]} Qa5+ {[%emt 0:00:44]} 11. c3 {[%emt 0:01:01]} cxd4 {[%emt 0:00:05]} 12. b4 {[%emt 0:00:08]} Qc7 {[%emt 0:00:06]} 13. Qxd4 {[%emt 0:01:07]} Nc6 {[%emt 0:01:00]} 14. Qd2 {[%emt 0:00:22]} b5 {[%emt 0:04:32]} 15. Nb2 {[%emt 0:00:34]} f6 {[%emt 0:02:13]} 16. a4 {[%emt 0:06:39]} Rb8 {[%emt 0:05:32]} 17. axb5 {[%emt 0:00:43]} axb5 {[%emt 0:00:04]} 18. Be2 {[%emt 0:14:22]} fxe5 {[%emt 0:19:53]} 19. fxe5 {[%emt 0:02:23]} Be7 {[%emt 0:05:16]} 20. O-O {[%emt 0:03:33]} O-O {[%emt 0:06:19]} 21. Nd4 {[%emt 0:04:22]} Nxd4 {[%emt 0:00:08]} 22. Bxd4 {[%emt 0:01:28]} Nxe5 {[%emt 0:25:31]} 23. Ra7 {[%emt 0:00:11]} Rxf1+ {[%emt 0:01:03]} 24. Bxf1 {[%emt 0:00:16]} Rb7 {[%emt 0:01:24]} 25. Rxb7 {[%emt 0:00:08]} Bxb7 {[%emt 0:00:05]} 26. Qe3 {[%emt 0:00:41]} Bf6 {[%emt 0:08:24]} 27. Bxb5 {[%emt 0:00:47]} Kf7 {[%emt 0:02:24]} 28. Qg3 {[%emt 0:12:33]} Qb8 {[%emt 0:03:42]} 29. Qh3 {[%emt 0:00:49]} Ng6 {[%emt 0:05:45]} 30. Bxf6 {[%emt 0:02:45]} Kxf6 {[%emt 0:00:06]} 31. Nd3 {[%emt 0:00:59]} Qa7+ {[%emt 0:03:51]} 32. Nc5 {[%emt 0:00:06]} Qa1+ {[%emt 0:01:03]} 33. Bf1 {[%emt 0:00:12]} Bc8 {[%emt 0:00:22]} 34. Qe3 {[%emt 0:00:16]} Qb1 {[%emt 0:02:41]} 35. Nd3 {[%emt 0:00:43]} Bd7 {[%emt 0:02:08]} 36. h4 {[%emt 0:00:22]} Bb5 {[%emt 0:00:42]} 37. Qf2+ {[%emt 0:00:22]} Ke7 {[%emt 0:00:17]} 38. Qc5+ {[%emt 0:00:03]} 1-0

[Event "Anderssen Festival 2019"]
[Site "Wroclaw"]
[Date "2019.08.06"]
[Round "2.2"]
[White "Jablonska, Sabina"]
[Black "Chernyshov, Konstantin"]
[Result "0-1"]
[ECO "A40"]
[WhiteElo "1963"]
[BlackElo "2446"]
[Annotator "NA"]
[PlyCount "60"]
[EventDate "2019.08.05"]
[EventType "swiss"]
[EventCountry "POL"]
[SourceTitle "playchess.com"]
[Source "ChessBase"]
[SourceQuality "1"]
[TimeControl "40/5400+30:900+30"]

1. d4 {[%emt 0:00:00]} e6 {[%emt 0:00:00]} 2. Nf3 {[%emt 0:00:00]} Nf6 {[%emt 0:00:20]} 3. Bf4 {[%emt 0:01:41]} c5 {[%emt 0:01:34]} 4. c3 {[%emt 0:02:51]} Qb6 {[%emt 0:00:46]} 5. Qb3 {[%emt 0:04:09]} d5 {[%emt 0:01:05]} 6. e3 {[%emt 0:00:58]} Bd7 {[%emt 0:01:31]} 7. Nbd2 {[%emt 0:02:53]} c4 {[%emt 0:01:46]} 8. Qc2 {[%emt 0:00:27]} Bc6 {[%emt 0:00:40]} 9. Ne5 {[%emt 0:08:11]} Nbd7 {[%emt 0:03:11]} 10. Be2 {[%emt 0:04:09]} Be7 {[%emt 0:01:56]} 11. g4 {[%emt 0:04:57]} Nxe5 {[%emt 0:01:01]} 12. Bxe5 {[%emt 0:06:18]} O-O {[%emt 0:00:18]} 13. Bxf6 {[%emt 0:07:25]} Bxf6 {[%emt 0:00:07]} 14. Nf3 {[%emt 0:00:08]} Qa5 {[%emt 0:02:43]} 15. h4 {[%emt 0:04:06]} b5 {[%emt 0:01:37]} 16. g5 {[%emt 0:16:31]} Be7 {[%emt 0:00:57]} 17. Ne5 {[%emt 0:00:16]} Be8 {[%emt 0:01:18]} 18. f4 {[%emt 0:14:11]} b4 {[%emt 0:00:58]} 19. Bd1 {[%emt 0:01:36]} Rb8 {[%emt 0:01:59]} 20. Kd2 {[%emt 0:08:02]} bxc3+ {[%emt 0:03:26]} 21. bxc3 {[%emt 0:00:08]} Qa3 {[%emt 0:00:09]} 22. Rb1 {[%emt 0:00:58]} Ba4 {[%emt 0:01:56]} 23. Qc1 {[%emt 0:02:08]} Qxa2+ {[%emt 0:01:41]} 24. Bc2 {[%emt 0:00:12]} Ba3 {[%emt 0:00:36]} 25. Qd1 {[%emt 0:01:23]} Rb2 {[%emt 0:00:12]} 26. Rxb2 {[%emt 0:01:53]} Qxb2 {[%emt 0:00:06]} 27. Nf3 {[%emt 0:04:15]} Rb8 {[%emt 0:00:38]} 28. Rh2 {[%emt 0:02:14]} Bxc2 {[%emt 0:01:15]} 29. Qxc2 {[%emt 0:00:07]} Qa1 {[%emt 0:00:06]} 30. Qd1 {[%emt 0:01:31]} Rb1 {[%emt 0:00:40]} 0-1

[Event "Anderssen Festival 2019"]
[Site "Wroclaw"]
[Date "2019.08.06"]
[Round "2.3"]
[White "Butkiewicz, Lukasz"]
[Black "Partoens, Remi"]
[Result "1-0"]
[ECO "D34"]
[WhiteElo "2425"]
[BlackElo "1957"]
[Annotator "NA"]
[PlyCount "113"]
[EventDate "2019.08.05"]
[EventType "swiss"]
[EventCountry "POL"]
[SourceTitle "playchess.com"]
[Source "ChessBase"]
[SourceQuality "1"]
[TimeControl "40/5400+30:900+30"]

1. d4 {[%emt 0:00:00]} Nf6 {[%emt 0:00:00]} 2. Nf3 {[%emt 0:00:00]} e6 {[%emt 0:00:06]} 3. c4 {[%emt 0:00:56]} d5 {[%emt 0:00:52]} 4. Nc3 {[%emt 0:02:51]} c5 {[%emt 0:03:07]} 5. cxd5 {[%emt 0:01:56]} exd5 {[%emt 0:00:11]} 6. g3 {[%emt 0:00:13]} Nc6 {[%emt 0:00:21]} 7. Bg2 {[%emt 0:00:44]} Be7 {[%emt 0:02:41]} 8. O-O {[%emt 0:03:20]} O-O {[%emt 0:00:07]} 9. dxc5 {[%emt 0:02:48]} Bxc5 {[%emt 0:04:05]} 10. Bg5 {[%emt 0:00:10]} d4 {[%emt 0:03:12]} 11. Na4 {[%emt 0:09:33]} Be7 {[%emt 0:01:11]} 12. Rc1 {[%emt 0:00:15]} h6 {[%emt 0:10:15]} 13. Bxf6 {[%emt 0:05:48]} Bxf6 {[%emt 0:00:12]} 14. Qd2 {[%emt 0:00:12]} Bg4 {[%emt 0:06:09]} 15. Nc5 {[%emt 0:03:26]} Qe7 {[%emt 0:03:00]} 16. h3 {[%emt 0:04:25]} Bh5 {[%emt 0:03:33]} 17. Rfe1 {[%emt 0:05:35]} Rfd8 {[%emt 0:02:15]} 18. Nh2 {[%emt 0:04:59]} Rac8 {[%emt 0:03:48]} 19. Ng4 {[%emt 0:09:06]} Bxg4 {[%emt 0:03:47]} 20. hxg4 {[%emt 0:00:05]} b6 {[%emt 0:04:26]} 21. Nd3 {[%emt 0:04:38]} Ne5 {[%emt 0:02:59]} 22. Nxe5 {[%emt 0:01:00]} Qxe5 {[%emt 0:00:50]} 23. Qd3 {[%emt 0:00:19]} Qe6 {[%emt 0:01:11]} 24. Rxc8 {[%emt 0:05:45]} Rxc8 {[%emt 0:00:19]} 25. Qa6 {[%emt 0:00:13]} Rc7 {[%emt 0:04:57]} 26. Bf3 {[%emt 0:00:58]} g6 {[%emt 0:00:15]} 27. Rd1 {[%emt 0:05:21]} Kg7 {[%emt 0:05:59]} 28. b3 {[%emt 0:06:44]} Qe5 {[%emt 0:05:34]} 29. Kg2 {[%emt 0:00:57]} Rc2 {[%emt 0:08:25]} 30. Qxa7 {[%emt 0:06:16]} Rxe2 {[%emt 0:02:54]} 31. Bxe2 {[%emt 0:01:10]} Qxe2 {[%emt 0:00:05]} 32. Rf1 {[%emt 0:00:33]} d3 {[%emt 0:07:32]} 33. Qb7 {[%emt 0:08:52]} d2 {[%emt 0:03:11]} 34. Qf3 {[%emt 0:00:21]} Qe1 {[%emt 0:01:58]} 35. a4 {[%emt 0:00:33]} Bd4 {[%emt 0:01:35]} 36. b4 {[%emt 0:01:05]} Qc1 {[%emt 0:01:51]} 37. a5 {[%emt 0:01:02]} bxa5 {[%emt 0:01:32]} 38. bxa5 {[%emt 0:00:01]} Qc5 {[%emt 0:02:03]} 39. a6 {[%emt 0:00:24]} Qc4 {[%emt 0:00:20]} 40. Rd1 {[%emt 0:00:00]} Qxa6 {[%emt 0:00:00]} 41. Rxd2 {[%emt 0:03:23]} Qa1 {[%emt 0:03:00]} 42. Qd5 {[%emt 0:01:26]} Bb6 {[%emt 0:05:18]} 43. Re2 {[%emt 0:01:18]} Qf6 {[%emt 0:00:27]} 44. Qe5 {[%emt 0:01:24]} Qxe5 {[%emt 0:00:36]} 45. Rxe5 {[%emt 0:00:02]} Bd4 {[%emt 0:00:26]} 46. Rd5 {[%emt 0:00:13]} Ba1 {[%emt 0:00:40]} 47. Kf3 {[%emt 0:00:17]} g5 {[%emt 0:01:29]} 48. Ke4 {[%emt 0:00:36]} Kg6 {[%emt 0:00:21]} 49. Rd6+ {[%emt 0:00:08]} f6 {[%emt 0:00:57]} 50. Rd7 {[%emt 0:00:26]} Be5 {[%emt 0:00:53]} 51. f4 {[%emt 0:01:06]} gxf4 {[%emt 0:00:20]} 52. gxf4 {[%emt 0:00:03]} Bb2 {[%emt 0:00:43]} 53. f5+ {[%emt 0:00:18]} Kg5 {[%emt 0:00:07]} 54. Rg7+ {[%emt 0:00:05]} Kh4 {[%emt 0:00:07]} 55. Rg6 {[%emt 0:00:26]} Kg3 {[%emt 0:00:25]} 56. Rxh6 {[%emt 0:00:52]} Kxg4 {[%emt 0:00:09]} 57. Rg6+ {[%emt 0:00:09]} 1-0

[Event "Anderssen Festival 2019"]
[Site "Wroclaw"]
[Date "2019.08.06"]
[Round "2.4"]
[White "Harutyunyan, Axel"]
[Black "Lalic, Bogdan"]
[Result "0-1"]
[ECO "B21"]
[WhiteElo "2017"]
[BlackElo "2411"]
[Annotator "NA"]
[PlyCount "44"]
[EventDate "2019.08.05"]
[EventType "swiss"]
[EventCountry "POL"]
[SourceTitle "playchess.com"]
[Source "ChessBase"]
[SourceQuality "1"]
[TimeControl "40/5400+30:900+30"]

1. e4 c5 {[%emt 0:02:54]} 2. d4 {[%emt 0:00:00]} cxd4 {[%emt 0:00:05]} 3. c3 {[%emt 0:00:00]} dxc3 {[%emt 0:00:24]} 4. Nxc3 {[%emt 0:00:00]} Nc6 {[%emt 0:00:25]} 5. Nf3 {[%emt 0:00:00]} d6 {[%emt 0:00:19]} 6. Bc4 {[%emt 0:00:02]} e6 {[%emt 0:00:24]} 7. O-O {[%emt 0:00:08]} a6 {[%emt 0:00:38]} 8. a4 {[%emt 0:01:06]} Be7 {[%emt 0:00:38]} 9. Qe2 {[%emt 0:00:27]} Nf6 {[%emt 0:00:39]} 10. Rd1 {[%emt 0:01:16]} Bd7 {[%emt 0:00:08]} 11. Bf4 {[%emt 0:06:14]} e5 {[%emt 0:00:26]} 12. Bg5 {[%emt 0:01:08]} Bg4 {[%emt 0:02:09]} 13. Rd3 {[%emt 0:14:27]} Nd4 {[%emt 0:02:25]} 14. Qd2 {[%emt 0:01:14]} Bxf3 {[%emt 0:00:15]} 15. gxf3 {[%emt 0:00:21]} Rc8 {[%emt 0:01:10]} 16. Ba2 {[%emt 0:00:14]} Nh5 {[%emt 0:04:11]} 17. Bxe7 {[%emt 0:01:33]} Qxe7 {[%emt 0:00:04]} 18. Nd5 {[%emt 0:06:28]} Qh4 {[%emt 0:00:36]} 19. Rxd4 {[%emt 0:03:09]} exd4 {[%emt 0:00:06]} 20. Qxd4 {[%emt 0:00:10]} O-O {[%emt 0:00:24]} 21. Kh1 {[%emt 0:01:26]} Rc2 {[%emt 0:02:24]} 22. Rf1 Ng3+ 0-1

[Event "Anderssen Festival 2019"]
[Site "Wroclaw"]
[Date "2019.08.06"]
[Round "2.5"]
[White "Lugovskoy, Maxim"]
[Black "Korpalski, Maciej"]
[Result "1-0"]
[ECO "C47"]
[WhiteElo "2425"]
[BlackElo "1954"]
[Annotator "NA"]
[PlyCount "39"]
[EventDate "2019.08.05"]
[EventType "swiss"]
[EventCountry "POL"]
[SourceTitle "playchess.com"]
[Source "ChessBase"]
[SourceQuality "1"]
[TimeControl "40/5400+30:900+30"]

1. e4 {[%emt 0:05:13]} e5 {[%emt 0:00:35]} 2. Nf3 {[%emt 0:00:04]} Nc6 {[%emt 0:00:05]} 3. Nc3 {[%emt 0:00:06]} Nf6 {[%emt 0:00:42]} 4. d4 {[%emt 0:00:03]} exd4 {[%emt 0:01:38]} 5. Nxd4 {[%emt 0:00:04]} Bb4 {[%emt 0:00:41]} 6. Nxc6 {[%emt 0:00:04]} bxc6 {[%emt 0:00:12]} 7. Bd3 {[%emt 0:00:06]} O-O {[%emt 0:04:34]} 8. O-O {[%emt 0:00:12]} d5 {[%emt 0:01:48]} 9. exd5 {[%emt 0:00:03]} cxd5 {[%emt 0:00:37]} 10. h3 {[%emt 0:00:04]} h6 {[%emt 0:02:17]} 11. Qf3 {[%emt 0:03:13]} c6 {[%emt 0:02:32]} 12. Ne2 {[%emt 0:00:25]} Bd6 {[%emt 0:01:33]} 13. Bf4 {[%emt 0:01:01]} Rb8 {[%emt 0:04:37]} 14. b3 {[%emt 0:00:03]} Qc7 {[%emt 0:01:48]} 15. Bxh6 {[%emt 0:01:01]} gxh6 {[%emt 0:12:08]} 16. Qxf6 {[%emt 0:02:29]} Be5 {[%emt 0:00:23]} 17. Qxh6 {[%emt 0:00:05]} f5 {[%emt 0:00:07]} 18. Qg5+ {[%emt 0:01:28]} Kh8 {[%emt 0:01:14]} 19. Rae1 {[%emt 0:00:09]} c5 {[%emt 0:01:46]} 20. Ng3 {[%emt 0:00:29]} 1-0

[Event "Anderssen Festival 2019"]
[Site "Wroclaw"]
[Date "2019.08.06"]
[Round "2.6"]
[White "Naumkin, Igor"]
[Black "Barbier, Astrid"]
[Result "1-0"]
[ECO "A80"]
[WhiteElo "2368"]
[BlackElo "1941"]
[Annotator "NA"]
[PlyCount "75"]
[EventDate "2019.08.05"]
[EventType "swiss"]
[EventCountry "POL"]
[SourceTitle "playchess.com"]
[Source "ChessBase"]
[SourceQuality "1"]
[TimeControl "40/5400+30:900+30"]

1. d4 f5 2. Nf3 Nf6 3. Bg5 g6 4. Bxf6 exf6 5. e3 d5 6. c4 c6 7. Nc3 Be6 8. cxd5 cxd5 9. Be2 Bg7 10. O-O O-O 11. Ne1 Nc6 12. Nd3 Ne7 13. Nc5 Bc8 14. Bf3 b6 15. Nd3 Bb7 16. Qb3 Qd7 17. Rac1 Kh8 18. g3 Rab8 19. Bg2 Rfd8 20. Nf4 Bc6 21. a3 Bf8 22. Rc2 Kg7 23. Rfc1 Kh6 24. Bf1 Rbc8 25. Ba6 Bb7 26. Bxb7 Qxb7 27. Nb5 a6 28. Rxc8 Rxc8 29. Rxc8 Qxc8 30. Nc3 g5 31. Nfxd5 Nxd5 32. Qxd5 Bg7 33. Qd6 b5 34. d5 Qb7 35. Qc6 Qb8 36. d6 Bf8 37. d7 Qd8 38. Nd5 1-0

[Event "Anderssen Festival 2019"]
[Site "Wroclaw"]
[Date "2019.08.06"]
[Round "2.7"]
[White "Kowalczuk, Mikolaj"]
[Black "Skliarov, Viktor"]
[Result "0-1"]
[ECO "E44"]
[WhiteElo "1942"]
[BlackElo "2360"]
[Annotator "NA"]
[PlyCount "84"]
[EventDate "2019.08.05"]
[EventType "swiss"]
[EventCountry "POL"]
[SourceTitle "playchess.com"]
[Source "ChessBase"]
[SourceQuality "1"]
[TimeControl "40/5400+30:900+30"]

1. d4 {[%emt 0:00:00]} Nf6 {[%emt 0:00:00]} 2. c4 {[%emt 0:00:00]} e6 {[%emt 0:00:01]} 3. Nc3 {[%emt 0:00:00]} Bb4 {[%emt 0:00:07]} 4. e3 {[%emt 0:00:00]} b6 {[%emt 0:00:09]} 5. Nge2 {[%emt 0:00:19]} Ne4 {[%emt 0:00:58]} 6. Bd2 {[%emt 0:00:03]} Nxd2 {[%emt 0:06:24]} 7. Qxd2 {[%emt 0:00:03]} O-O {[%emt 0:00:35]} 8. a3 {[%emt 0:00:18]} Be7 {[%emt 0:02:15]} 9. g3 {[%emt 0:02:27]} Ba6 {[%emt 0:06:41]} 10. Nf4 {[%emt 0:12:54]} c6 {[%emt 0:12:05]} 11. b4 {[%emt 0:14:08]} Bg5 {[%emt 0:09:18]} 12. b5 {[%emt 0:04:45]} Bxf4 {[%emt 0:04:10]} 13. exf4 {[%emt 0:01:48]} Bb7 {[%emt 0:04:54]} 14. Bg2 {[%emt 0:00:46]} d5 {[%emt 0:01:01]} 15. bxc6 {[%emt 0:18:55]} Nxc6 {[%emt 0:01:51]} 16. cxd5 {[%emt 0:00:39]} Na5 {[%emt 0:00:24]} 17. Rd1 {[%emt 0:17:25]} exd5 {[%emt 0:00:21]} 18. O-O {[%emt 0:00:12]} Nc4 {[%emt 0:01:38]} 19. Qa2 {[%emt 0:04:01]} Qd6 {[%emt 0:01:36]} 20. a4 {[%emt 0:01:30]} a6 {[%emt 0:01:15]} 21. Rfe1 {[%emt 0:03:02]} Bc6 {[%emt 0:09:16]} 22. Qb3 {[%emt 0:10:19]} Rab8 {[%emt 0:00:40]} 23. Re2 {[%emt 0:02:48]} b5 {[%emt 0:04:17]} 24. axb5 {[%emt 0:00:02]} axb5 {[%emt 0:00:05]} 25. f5 {[%emt 0:01:20]} b4 {[%emt 0:01:33]} 26. Ne4 {[%emt 0:01:01]} dxe4 {[%emt 0:00:47]} 27. Qxc4 {[%emt 0:00:12]} Bb5 {[%emt 0:00:06]} 28. Qa2 {[%emt 0:01:38]} b3 {[%emt 0:01:38]} 29. Qb2 {[%emt 0:00:14]} Bxe2 {[%emt 0:00:07]} 30. Qxe2 {[%emt 0:00:07]} Rfe8 {[%emt 0:00:29]} 31. Bxe4 {[%emt 0:02:25]} Qe7 {[%emt 0:00:15]} 32. f3 {[%emt 0:00:23]} b2 {[%emt 0:00:36]} 33. Qd3 {[%emt 0:01:07]} Rec8 {[%emt 0:00:58]} 34. Rb1 {[%emt 0:01:26]} Rc1+ {[%emt 0:00:28]} 35. Kg2 {[%emt 0:00:11]} Rxb1 {[%emt 0:02:05]} 36. Qxb1 {[%emt 0:00:46]} Qb4 {[%emt 0:00:13]} 37. f6 {[%emt 0:00:40]} Qd2+ {[%emt 0:00:17]} 38. Kh3 {[%emt 0:00:29]} Qh6+ {[%emt 0:00:14]} 39. Kg2 {[%emt 0:00:26]} Qxf6 {[%emt 0:00:10]} 40. Bxh7+ {[%emt 0:00:00]} Kh8 {[%emt 0:00:00]} 41. Be4 {[%emt 0:01:28]} Qxd4 {[%emt 0:00:18]} 42. Qa2 {[%emt 0:01:21]} Qxe4 {[%emt 0:00:32]} 0-1

[Event "Anderssen Festival 2019"]
[Site "Wroclaw"]
[Date "2019.08.06"]
[Round "2.8"]
[White "Dubinski, Mateusz"]
[Black "Krawiecki, Stanislaw"]
[Result "1/2-1/2"]
[ECO "D78"]
[WhiteElo "2306"]
[BlackElo "1923"]
[Annotator "NA"]
[PlyCount "95"]
[EventDate "2019.08.05"]
[EventType "swiss"]
[EventCountry "POL"]
[SourceTitle "playchess.com"]
[Source "ChessBase"]
[SourceQuality "1"]
[TimeControl "40/5400+30:900+30"]

1. d4 Nf6 2. g3 g6 3. Bg2 d5 4. Nf3 Bg7 5. O-O O-O 6. c4 c6 7. Nbd2 Ne4 8. b3 Bg4 9. Bb2 Bxf3 10. Nxf3 Nd7 11. Ne1 e6 12. Nd3 f5 13. e3 b5 14. cxb5 cxb5 15. Ba3 Re8 16. f3 Nef6 17. Qd2 Qb6 18. Rac1 Rec8 19. Bb4 Qb7 20. Rfe1 Rxc1 21. Rxc1 Rc8 22. Bf1 Ne8 23. Rxc8 Qxc8 24. Nf4 Qc6 25. Qc3 Qxc3 26. Bxc3 Nc7 27. Ba5 Nb6 28. Nd3 Na6 29. Nb4 Nxb4 30. Bxb4 a6 31. Ba5 Nc8 32. a4 Nd6 33. Kf2 Kf7 34. Ke1 Ke8 35. Bd3 Kd7 36. Bb4 Kc6 37. Bxd6 Kxd6 38. axb5 axb5 39. Bxb5 e5 40. dxe5+ Bxe5 41. Ke2 d4 42. f4 Bf6 43. h4 dxe3 44. Kxe3 Bd8 45. b4 Bb6+ 46. Kf3 Ke6 47. Bd3 h5 48. b5 {Ke5 Ke4+} 1/2-1/2

[Event "Anderssen Festival 2019"]
[Site "Wroclaw"]
[Date "2019.08.06"]
[Round "2.9"]
[White "Kawalko, Adam"]
[Black "Piotrowski, Przemyslaw"]
[Result "0-1"]
[ECO "B67"]
[WhiteElo "1920"]
[BlackElo "2273"]
[Annotator "NA"]
[PlyCount "68"]
[EventDate "2019.08.05"]
[EventType "swiss"]
[EventCountry "POL"]
[SourceTitle "playchess.com"]
[Source "ChessBase"]
[SourceQuality "1"]
[TimeControl "40/5400+30:900+30"]

1. e4 c5 2. Nf3 Nc6 3. d4 cxd4 4. Nxd4 Nf6 5. Nc3 d6 6. Bg5 e6 7. Qd2 a6 8. O-O-O Bd7 9. f4 b5 10. Bxf6 gxf6 11. Kb1 Qb6 12. Nxc6 Bxc6 13. f5 Qc5 14. Bd3 h5 15. Qe1 b4 16. Nd5 Bxd5 17. exd5 e5 18. Qh4 Ke7 19. Rhe1 Bh6 20. Re4 a5 21. Rc4 Qa7 22. Rc6 Be3 23. Qc4 Bc5 24. Be4 a4 25. Rd3 Rhb8 26. Bf3 Ke8 27. Bd1 Qa5 28. Rxc5 Qxc5 29. Qxc5 dxc5 30. Bxh5 b3 31. cxb3 axb3 32. axb3 Rb4 33. Bf3 Kd7 34. d6 e4 0-1

[Event "Anderssen Festival 2019"]
[Site "Wroclaw"]
[Date "2019.08.06"]
[Round "2.10"]
[White "Nowak, Mikolaj"]
[Black "Auwens, Michel"]
[Result "1-0"]
[ECO "A02"]
[WhiteElo "2230"]
[BlackElo "1879"]
[Annotator "NA"]
[PlyCount "45"]
[EventDate "2019.08.05"]
[EventType "swiss"]
[EventCountry "POL"]
[SourceTitle "playchess.com"]
[Source "ChessBase"]
[SourceQuality "1"]
[TimeControl "40/5400+30:900+30"]

1. f4 d6 2. Nf3 Nd7 3. e4 e5 4. Bc4 Be7 5. d3 c6 6. O-O Ngf6 7. Nc3 O-O 8. a4 Rb8 9. h3 exf4 10. Bxf4 b6 11. g4 Qc7 12. Qd2 Ne5 13. Ba2 Ba6 14. Qh2 Nfd7 15. Nd4 Ng6 16. Nf5 Nde5 17. Bg3 Rbd8 18. Rf2 Kh8 19. d4 Nc4 20. b3 Na5 21. h4 Kg8 22. h5 Nh8 23. b4 1-0